Cogmind - Beta 15 @@@ ROGUE MODE // 2025.06.05 @ 21:06:55 Player: Olafz Result: Destroyed by B-60 Warrior with Heavy Mace Performance ------------- Evolutions (4) 2000 Regions Visited (8) 1600 Robots Destroyed (14) 70 Value Destroyed (627) 627 Prototype IDs (6) 120 Alien Tech Used (0) 0 Bonus (1070) 1070 TOTAL SCORE: 5487 Bonus ------- Pacifist 270 Registered with UFD 300 Met Optimus in HQ 500 Cogmind --------- Core Integrity 0/850 Matter 167/300 Energy 99/100 System Corruption 6% Temperature Cool (0) Movement Core (50) Location -5/Proximity Caves Parts ------- > --- POWER (1) -------- (None) > --- PROPULSION (3) --- (None) > --- UTILITY (9) ------ (None) > --- WEAPON (2) ------- (None) > --- INVENTORY (5) ---- Experimental Terrain Scan Processor Shotgun Makeshift Shrapnel Gun Maul Phasing Sabre Peak State ------------ > --- POWER ------------ Improved Ion Engine > --- PROPULSION ------- Aluminum Leg Flexi-carbon Leg Flexi-carbon Leg > --- UTILITY ---------- Large Storage Unit Improved Sensor Array Improved Signal Interpreter IFF Parser Targeting Computer Matter Filter Makeshift Hacking Suite Makeshift System Shield > --- WEAPON ----------- Flak Gun Hypervelocity Gauss Rifle > --- INVENTORY -------- Light Deuterium Engine Carbon-fiber Leg Small Storage Unit Experimental Terrain Scan Processor Heavy Assault Rifle Shotgun Makeshift Shrapnel Gun Slug Cannon Bore Cannon Enhanced Gauss Cannon Heavy Missile Launcher Maul Makeshift Sword Phasing Sabre [Rating: 52] Favorites ----------- Power Improved Ion Engine Engine Improved Ion Engine Power Core Light Fission Core Propulsion Aluminum Leg Leg Aluminum Leg Utility Small Storage Unit Device Improved Sensor Array Storage Small Storage Unit Processor Improved Signal Interpreter Hackware Makeshift System Shield Weapon Assault Rifle Ballistic Gun Assault Rifle Ballistic Cannon Bore Cannon Launcher Heavy Missile Launcher Build | -11 -10 -10 -9 -6 -6 -6 -6 -5 ------- Run | Yrd Mat Sub Scr Fac Low Low Zio Pro Slots Evolved 8 | . . . . 8 . . . . Power . | . . . . . . . . . Propulsion 1 | . . . . 1 . . . . Utility 7 | . . . . 7 . . . . Weapon . | . . . . . . . . . Parts Attached 39 | 6 . 1 2 10 6 1 5 8 Power 6 | 1 . . 1 2 1 . . 1 Engine 4 | 1 . . 1 . 1 . . 1 Core 2 | . . . . 2 . . . . Reactor . | . . . . . . . . . Propulsion 9 | 2 . . 1 2 2 . . 2 Treads . | . . . . . . . . . Leg 9 | 2 . . 1 2 2 . . 2 Wheel . | . . . . . . . . . Hover . | . . . . . . . . . Flight . | . . . . . . . . . Utility 12 | 1 . 1 . 4 . 1 4 1 Device 6 | . . 1 . 2 . 1 1 1 Storage 2 | 1 . . . . . . 1 . Processor 2 | . . . . 2 . . . . Hackware 2 | . . . . . . . 2 . Protection . | . . . . . . . . . Artifact . | . . . . . . . . . Weapon 12 | 2 . . . 2 3 . 1 4 Energy Gun . | . . . . . . . . . Energy Cannon . | . . . . . . . . . Ballistic Gun 7 | 2 . . . 2 2 . 1 . Ballistic Cannon 4 | . . . . . . . . 4 Launcher 1 | . . . . . 1 . . . Special Weapon . | . . . . . . . . . Impact Weapon . | . . . . . . . . . Slashing Weapon . | . . . . . . . . . Piercing Weapon . | . . . . . . . . . Special Melee Weapon . | . . . . . . . . . Unidentified Prototypes . | . . . . . . . . . Parts Lost 23 | . . . . . 8 . . 15 Power 3 | . . . . . 1 . . 2 Propulsion 8 | . . . . . 3 . . 5 Utility 6 | . . . . . 2 . . 4 Weapon 6 | . . . . . 2 . . 4 Highest Loss Streak 12 | . . . . . 7 . . 12 To Critical Strikes 1 | . . . . . 1 . . . Average Backups 7 | . 2 2 6 7 7 5 9 9 Power 1 | . 1 1 1 2 1 1 1 . Propulsion . | . . . . 2 2 1 1 . Utility 1 | . . . 1 1 1 1 1 1 Weapon 3 | . 1 1 2 1 2 2 5 7 Tool/Special . | . . . . . . . . . Unused Backups 10 | . . . 1 3 . . . 6 Power 1 | . . . . 1 . . . . Propulsion . | . . . . . . . . . Utility 2 | . . . . 1 . . . 1 Weapon 7 | . . . 1 1 . . . 5 Tool/Special . | . . . . . . . . . Average Slot Usage (%) 75 | . 85 95 100 63 52 70 81 57 Engine 6 | . 14 14 14 1 . 6 6 1 Leg 19 | . 28 28 28 18 11 20 20 11 Device 12 | . . 9 14 12 9 10 17 11 Storage 8 | . 14 14 14 6 6 6 6 5 Processor 7 | . . . . 5 13 13 13 7 Hackware 1 | . . . . . . . 4 6 Ballistic Gun 13 | . 28 28 28 13 7 6 10 2 Ballistic Cannon 1 | . . . . . . . . 8 Launcher 1 | . . . . . . 6 2 . Peak Build Rating 52 | 6 6 9 12 44 44 35 51 52 Average Rating 26 | 4 6 8 10 31 23 33 42 33 On Entrance 21 | . 6 6 9 12 44 30 35 51 Naked Turns 44 | . . . . . . . . 44 Heaviest Build 42 | 14 14 15 17 24 24 25 42 42 Greatest Support 53 | 20 20 20 23 53 53 50 50 50 Greatest Overweight (x) 1 | 1 . . . . . . . 1 Average Overweight (x) . | . . . . . . . . . Largest Inventory Capacity 15 | 8 8 8 8 8 8 8 15 15 Average Capacity 9 | 6 8 8 8 8 8 8 13 9 Most Carried 14 | 2 2 4 8 8 8 5 13 14 Average Carried 7 | . 2 2 6 7 7 5 9 9 Final Capacity 15 | 8 8 8 8 8 8 8 15 5 Final Carried 13 | 2 2 4 8 8 5 5 13 5 Class Distribution -------------------- 44% | Mutant 15% | Scavenger-Mutant 14% | Scavenger-Skirmisher 14% | Derelict-Skirmisher 11% | Derelict-Mutant Dominant Class ---------------- Mutant | -10/Materials Mutant | -10/Subcaves Mutant | -9/Scraptown Scavenger-Mutant | -6/Factory Mutant | -6/Lower Caves Scavenger-Skirmisher | -6/Lower Caves Derelict-Skirmisher | -6/Zion Derelict-Mutant | -5/Proximity Caves Resources | -11 -10 -10 -9 -6 -6 -6 -6 -5 ----------- Run | Yrd Mat Sub Scr Fac Low Low Zio Pro Matter Collected 984 | 107 . 163 20 66 283 85 40 220 Remotely . | . . . . . . . . . Salvage Created 395 | . . . . 178 133 . . 84 Parts 21 | . . . . 11 4 . . 6 Haulers Intercepted . | . . . . . . . . . Recyclers Shooed . | . . . . . . . . . Parts Field Recycled . | . . . . . . . . . Retrieved Matter . | . . . . . . . . . Parts Self-Destructed 19 | . . 6 . . 7 . . 6 Prevented 1 | . . . . . 1 . . . Kills | -11 -10 -10 -9 -6 -6 -6 -6 -5 ------- Run | Yrd Mat Sub Scr Fac Low Low Zio Pro Combat Hostiles Destroyed 14 | . . . . 3 4 . . 7 Guns 5 | . . . . 3 2 . . . Cannons 2 | . . . . . . . . 2 AOE 7 | . . . . . 2 . . 5 Classes Destroyed 5 | . . . . 2 2 . . 1 Swarmer 6 | . . . . . 1 . . 5 Grunt 4 | . . . . 1 2 . . 1 Brawler 1 | . . . . . 1 . . . Hunter 2 | . . . . 2 . . . . Behemoth 1 | . . . . . . . . 1 Best Kill Streak 5 | . . . . 1 3 . . 5 Combat Bots Only 5 | . . . . 1 3 . . 5 Max Kills in Single Turn 4 | . . . . 1 2 . . 4 Gunslinging . | . . . . . . . . . Exploded 4 | . . . . . 2 . . 4 Melee . | . . . . . . . . . Uniques/NPCs Destroyed . | . . . . . . . . . Combat | -11 -10 -10 -9 -6 -6 -6 -6 -5 -------- Run | Yrd Mat Sub Scr Fac Low Low Zio Pro Hostile Shots Fired 291 | . . . . 64 105 . . 122 Missed 113 | . . . . 21 45 . . 47 Hits 178 | . . . . 43 60 . . 75 Melee 3 | . . . . . . . . 3 Projectile 175 | . . . . 43 60 . . 72 Critical Strikes 4 | . . . . . 1 . . 3 Damage Taken 3318 | . . . . 796 658 . . 1864 Core 875 | . . . . 220 95 . . 560 Absorbed by Shields . | . . . . . . . . . Core Remaining (%) 100 | 100 . . 100 . . . . . Volleys Fired 65 | . . . . 29 10 . . 26 Largest 2 | . . . . 2 2 . . 2 Hottest 88 | . . . . 58 67 . . 88 Shots Fired 122 | . . . . 58 18 . . 46 Gun 79 | . . . . 58 16 . . 5 Cannon 32 | . . . . . . . . 32 Launcher 11 | . . . . . 2 . . 9 Special . | . . . . . . . . . Kinetic 111 | . . . . 58 16 . . 37 Thermal . | . . . . . . . . . Explosive 11 | . . . . . 2 . . 9 Electromagnetic . | . . . . . . . . . Robot Hit Streak 11 | . . . . 11 4 . . 7 Robot Miss Streak 5 | . . . . 5 3 . . 5 Penetration Max 1 | . . . . . . . . 1 Secondary Targets . | . . . . . . . . . Shots Hit Robots 76 | . . . . 38 10 . . 28 Core Hits 39 | . . . . 13 13 . . 13 Critical Kills . | . . . . . . . . . Critical Parts Destroyed 5 | . . . . 2 . . . 3 Critical Strikes 9 | . . . . 2 . . . 7 Destroy 9 | . . . . 2 . . . 7 Melee Attacks . | . . . . . . . . . Impact . | . . . . . . . . . Slashing . | . . . . . . . . . Piercing . | . . . . . . . . . Sneak Attacks . | . . . . . . . . . Combat Hostiles . | . . . . . . . . . Follow-up Attacks . | . . . . . . . . . Damage Inflicted 2323 | . . . . 515 436 . . 1372 Guns 713 | . . . . 515 178 . . 20 Cannons 674 | . . . . . . . . 674 Explosions 932 | . . . . . 258 . . 674 Melee . | . . . . . . . . . Ramming 4 | . . . . . . . . 4 Kinetic 1387 | . . . . 515 178 . . 694 Thermal . | . . . . . . . . . Explosive 932 | . . . . . 258 . . 674 Electromagnetic . | . . . . . . . . . Impact . | . . . . . . . . . Slashing . | . . . . . . . . . Piercing . | . . . . . . . . . Highest Corruption 6 | . . . . . . . . 6 Average Corruption 6 | . . . . . . . . 6 Corruption Purged . | . . . . . . . . . Corruption Blocked . | . . . . . . . . . Overload Shots . | . . . . . . . . . Overflow Damage 12 | . . . . . . . . 12 Projectiles 5 | . . . . . . . . 5 Explosions 7 | . . . . . . . . 7 Melee . | . . . . . . . . . Knockbacks 2 | . . . . . . . . 2 Impact . | . . . . . . . . . Kinetic 2 | . . . . . . . . 2 Secondary . | . . . . . . . . . Self-Inflicted Damage 27 | . . . . . . . . 27 Shots 1 | . . . . . . . . 1 Rammed . | . . . . . . . . . Targets Rammed 1 | . . . . . . . . 1 Kicked 1 | . . . . . . . . 1 Crushed . | . . . . . . . . . Highest Temperature 36 | . . . . . 12 . . 36 Average Temperature 10 | . . . . . 6 . . 12 Received Heat Transfer 627 | . . . . 153 219 . . 255 Siege Activations . | . . . . . . . . . Martial Activations . | . . . . . . . . . Shielding Activations . | . . . . . . . . . Robots Disrupted . | . . . . . . . . . Combat Hostiles . | . . . . . . . . . Robots Corrupted . | . . . . . . . . . Combat Hostiles . | . . . . . . . . . Parts Fried . | . . . . . . . . . Impact Corruptions . | . . . . . . . . . Robots Melted . | . . . . . . . . . Combat Hostiles . | . . . . . . . . . Parts Melted . | . . . . . . . . . Heat Transferred . | . . . . . . . . . Parts Sabotaged . | . . . . . . . . . Parts Stolen . | . . . . . . . . . Parts Stripped . | . . . . . . . . . Power Chain Reactions . | . . . . . . . . . Alert | -11 -10 -10 -9 -6 -6 -6 -6 -5 ------- Run | Yrd Mat Sub Scr Fac Low Low Zio Pro Maximum Alert Level . | . . . . . . . . . Low Security (%) 100 | 100 100 . . 100 . . . . Level 1 . | . . . . . . . . . Level 2 . | . . . . . . . . . Level 3 . | . . . . . . . . . Level 4 . | . . . . . . . . . Level 5 . | . . . . . . . . . High Security . | . . . . . . . . . Max Security . | . . . . . . . . . Peak Influence 83 | . . . . 83 . . . . Initial . | . . . . . . . . . Average 24 | . . . . 36 . . . . Influence Increases 468 | . . . . 188 90 . . 190 Destroy 0b10 Robot/C 280 | . . . . 60 80 . . 140 Destroy Leader 50 | . . . . 20 10 . . 20 Successful Hack 29 | . . . . 29 . . . . Disable Machine 15 | . . . . 15 . . . . Destroy Structure 4 | . . . . 4 . . . . Lose Combat Pursuer 90 | . . . . 60 . . . 30 Influence Decreases 446 | . . . . 140 76 62 . 168 Entered New Map 32 | . . . . . 19 13 . . Time Decay 314 | . . . . 140 47 49 . 78 Lost Part 100 | . . . . . 10 . . 90 Squads Dispatched 3 | . 1 . . 1 . . . 1 Investigation 1 | . . . . 1 . . . . Extermination . | . . . . . . . . . Reinforcement 1 | . 1 . . . . . . . Assault 1 | . . . . . . . . 1 Garrison . | . . . . . . . . . Intercept . | . . . . . . . . . Searches Triggered . | . . . . . . . . . Construction Impeded . | . . . . . . . . . Haulers Reinforced . | . . . . . . . . . Active Scanning Responses . | . . . . . . . . . Cargo Convoy Interrupts . | . . . . . . . . . Stealth | -11 -10 -10 -9 -6 -6 -6 -6 -5 --------- Run | Yrd Mat Sub Scr Fac Low Low Zio Pro Distress Signals . | . . . . . . . . . Communications Jammed . | . . . . . . . . . Distress Signals . | . . . . . . . . . Times Spotted 43 | . . 4 . 5 6 4 . 24 Peak Tracking Total 14 | . . 2 . 3 3 9 . 14 Tactical Retreats 3 | . . . . 2 . . . 1 Traps | -11 -10 -10 -9 -6 -6 -6 -6 -5 ------- Run | Yrd Mat Sub Scr Fac Low Low Zio Pro Traps Triggered . | . . . . . . . . . Indirectly . | . . . . . . . . . Trap Hack Attempts . | . . . . . . . . . Triggered . | . . . . . . . . . Disarmed . | . . . . . . . . . Reprogrammed . | . . . . . . . . . Reused . | . . . . . . . . . Traps Extracted . | . . . . . . . . . Installed . | . . . . . . . . . Triggered . | . . . . . . . . . Machines | -11 -10 -10 -9 -6 -6 -6 -6 -5 ---------- Run | Yrd Mat Sub Scr Fac Low Low Zio Pro Machines Disabled 1 | . . . . 1 . . . . Max in Single Turn 1 | . . . . 1 . . . . Machines Repaired . | . . . . . . . . . Machines Dismantled . | . . . . . . . . . Machines Sabotaged . | . . . . . . . . . Overloaded Fab Kills . | . . . . . . . . . Hacking | -11 -10 -10 -9 -6 -6 -6 -6 -5 --------- Run | Yrd Mat Sub Scr Fac Low Low Zio Pro Machines Accessed 6 | . . . 3 3 . . . . Terminals 2 | . . . . 2 . . . . Fabricators . | . . . . . . . . . Repair Stations . | . . . . . . . . . Recycling Units 1 | . . . . 1 . . . . Scanalyzers . | . . . . . . . . . Garrison Access . | . . . . . . . . . Total Hacks 32 | . . . 25 7 . . . . Successful 29 | . . . 25 4 . . . . Failed 3 | . . . . 3 . . . . Catastrophic . | . . . . . . . . . Database Lockouts . | . . . . . . . . . Manual 6 | . . . . 6 . . . . Terminals 6 | . . . . 6 . . . . Fabricators . | . . . . . . . . . Repair Stations . | . . . . . . . . . Recycling Units 1 | . . . . 1 . . . . Scanalyzers . | . . . . . . . . . Garrison Access . | . . . . . . . . . Terminal Hacks 26 | . . . 25 1 . . . . Record 25 | . . . 25 . . . . . Emergency Access Points 1 | . . . . 1 . . . . Fabricator Hacks . | . . . . . . . . . Repair Station Hacks . | . . . . . . . . . Recycling Unit Hacks . | . . . . . . . . . Scanalyzer . | . . . . . . . . . Garrison Access Hacks . | . . . . . . . . . Unauthorized Hacks 3 | . . . . 3 . . . . Terminals 2 | . . . . 2 . . . . Botnet 2 | . . . . 2 . . . . Fabricators . | . . . . . . . . . Repair Stations . | . . . . . . . . . Recycling Units 1 | . . . . 1 . . . . Fedlink 1 | . . . . 1 . . . . Scanalyzers . | . . . . . . . . . Garrison Access . | . . . . . . . . . Data Cores Recovered . | . . . . . . . . . Used . | . . . . . . . . . Hacking Detections 1 | . . . . 1 . . . . Full Trace Events . | . . . . . . . . . Feedback Events . | . . . . . . . . . Feedback Blocked . | . . . . . . . . . Robot Schematics Acquired 3 | . . . . . . . 3 . Robots Built . | . . . . . . . . . Authchips . | . . . . . . . . . Time . | . . . . . . . . . Total Robot Build Rating . | . . . . . . . . . Part Schematics Acquired 14 | . . . . . . . 14 . Parts Built . | . . . . . . . . . Authchips . | . . . . . . . . . Time . | . . . . . . . . . Total Part Build Rating . | . . . . . . . . . Parts Repaired . | . . . . . . . . . Time . | . . . . . . . . . Parts Recycled . | . . . . . . . . . Recycled Matter . | . . . . . . . . . Retrieved Matter . | . . . . . . . . . Retrieved Components . | . . . . . . . . . Parts Scanalyzed . | . . . . . . . . . Part Schematics Acquired . | . . . . . . . . . Parts Damaged . | . . . . . . . . . Bothacking | -11 -10 -10 -9 -6 -6 -6 -6 -5 ------------ Run | Yrd Mat Sub Scr Fac Low Low Zio Pro Used RIF Installer . | . . . . . . . . . Robots Hacked . | . . . . . . . . . Non-combat . | . . . . . . . . . Combat . | . . . . . . . . . Robot Hacks Applied . | . . . . . . . . . Relay Couplers Released . | . . . . . . . . . Fabnet Peak Effective % . | . . . . . . . . . Robots Rewired . | . . . . . . . . . Allies Hacked . | . . . . . . . . . Hacks Repelled . | . . . . . . . . . Allies | -11 -10 -10 -9 -6 -6 -6 -6 -5 -------- Run | Yrd Mat Sub Scr Fac Low Low Zio Pro Total Allies . | . . . . . . . . . Largest Group . | . . . . . . . . . Highest-Rated Group . | . . . . . . . . . Highest-Rated Ally . | . . . . . . . . . Total Orders . | . . . . . . . . . Ally Attacks . | . . . . . . . . . Total Damage . | . . . . . . . . . Kills . | . . . . . . . . . Allies Corrupted . | . . . . . . . . . Allies Melted . | . . . . . . . . . Intel | -11 -10 -10 -9 -6 -6 -6 -6 -5 ------- Run | Yrd Mat Sub Scr Fac Low Low Zio Pro Active Infowar (turns) 1943 | . . . . 27 553 300 726 337 Sensors 1663 | . . . . 27 553 300 726 57 IFF 1271 | . . . . . . 208 726 337 ECM 1 | . . . . . . . . 1 Robot Analysis Total . | . . . . . . . . . Derelict Logs Recovered 2 | . . . . . . . . 2 Drone Launches . | . . . . . . . . . Drone Recoveries . | . . . . . . . . . Exploration | -11 -10 -10 -9 -6 -6 -6 -6 -5 ------------- Run | Yrd Mat Sub Scr Fac Low Low Zio Pro Turns Passed 3505 | 42 111 236 716 300 553 300 726 521 Spaces Moved 2612 | 29 48 163 593 157 415 249 588 370 Core 91 | 5 . . . . . . . 86 Treads . | . . . . . . . . . Legs 2521 | 24 48 163 593 157 415 249 588 284 Wheels . | . . . . . . . . . Hover . | . . . . . . . . . Flight . | . . . . . . . . . Fastest Speed 50 | 50 120 120 120 120 120 120 120 50 Average Speed 119 | 109 120 120 120 120 120 120 120 114 Slowest Speed 190 | 120 120 120 120 120 120 120 120 190 Overloaded Moves . | . . . . . . . . . Propulsion Burnouts . | . . . . . . . . . Robots Hopped . | . . . . . . . . . Potential Cave-ins . | . . . . . . . . . Cave-ins Triggered . | . . . . . . . . . Exploration Rate (%) 34 | 3 15 16 46 3 61 48 75 47 Regions Visited 8 Branch Regions 6 Pre-discovered Areas 1 | . . . . . . . 1 . Known Exits Taken 4 | . . . . 1 1 1 1 . Unknown Exits Taken 4 | 1 1 1 1 . . . . . Scrap Searched 15 | . . . 5 . 1 3 4 2 Spaces Dug . | . . . . . . . . . Terrain Destroyed 86 | . . . . . 21 . . 65 Melee . | . . . . . . . . . Projectile 9 | . . . . . . . . 9 AOE 77 | . . . . . 21 . . 56 Terrain Rammed . | . . . . . . . . . Walls Destroyed . | . . . . . . . . . Machines Disabled . | . . . . . . . . . Actions | -11 -10 -10 -9 -6 -6 -6 -6 -5 --------- Run | Yrd Mat Sub Scr Fac Low Low Zio Pro Total 2876 | 36 101 203 599 212 451 249 607 418 Wait 126 | . 54 38 1 4 18 . 7 4 Move 2604 | 28 47 162 592 156 414 248 587 370 Hop . | . . . . . . . . . Pick Up 21 | 2 . 2 3 4 2 . 6 2 Fast Attach 22 | 6 . 1 . 5 1 1 5 3 Attach 11 | . . . . . 5 . . 6 Detach 2 | . . . . . . . 2 . Swap 11 | . . . 2 5 1 . . 3 Drop 13 | . . . 1 9 . . . 3 Fire 65 | . . . . 29 10 . . 26 Melee . | . . . . . . . . . Ram . | . . . . . . . . . Kick 1 | . . . . . . . . 1 Crush . | . . . . . . . . . Escape Stasis . | . . . . . . . . . Rewire . | . . . . . . . . . Trap . | . . . . . . . . . Miscellaneous . | . . . . . . . . . Route ------- -11/Scrapyard -10/Materials -10/Subcaves -9/Scraptown -6/Factory -6/Lower Caves -6/Lower Caves -6/Zion -5/Proximity Caves History --------- Turn | Location | Event 4 | -11/Scrapyard | Discovered new exit (range 16) 43 | -11/Scrapyard | Entered Materials 44 | -10/Materials | Met a group of wandering Federalists 150 | -10/Materials | Discovered new exit (range 5) 154 | -10/Materials | Entered Subcaves 155 | -10/Subcaves | Continued accompanying wandering Federalists (5) 155 | -10/Subcaves | Approached by a straggling Scientist 303 | -10/Subcaves | Build established: Mutant 384 | -10/Subcaves | Wandering Federalist uncovered a shortcut to Scraptown 390 | -10/Subcaves | Entered Scraptown 540 | -9/Scraptown | Visited UFD Registry 540 | -9/Scraptown | Registered with UFD as "Gaussform" 567 | -9/Scraptown | Visited Analyses Database 585 | -9/Scraptown | Visited Infowarlord's Domain 593 | -9/Scraptown | Found Exp. Terrain Scan Processor 615 | -9/Scraptown | Visited Chapter 10 643 | -9/Scraptown | Visited Supply Room 669 | -9/Scraptown | Visited Junk Repository 700 | -9/Scraptown | Visited Science Guys 718 | -9/Scraptown | Visited A0-MCA Data Center 738 | -9/Scraptown | Visited Research Penetration Think Tank 767 | -9/Scraptown | Visited DA-N13 Charitable Foundation 772 | -9/Scraptown | Found DCF Scrap (28 items) 1008 | -9/Scraptown | Met Optimus 1008 | -9/Scraptown | Accepted into 0bPrime 1099 | -9/Scraptown | Discovered new exit (range 5) 1106 | -9/Scraptown | Entered Factory 1106 | -6/Factory | Evolved 8 slots: Propulsion x1, Utility x7 1224 | -6/Factory | Loaded intel: 8 recycling unit locations 1268 | -6/Factory | Discovered new exit (range 15) 1404 | -6/Factory | Identified exit to Lower Caves 1406 | -6/Factory | Entered Lower Caves 1441 | -6/Lower Caves | Build established: Scavenger-Mutant 1461 | -6/Lower Caves | Encountered a Warlord checkpoint 1533 | -6/Lower Caves | Attracted the attention of an 0b10 checkpoint 1588 | -6/Lower Caves | Lost 7 parts (1p2n2u2w) 1842 | -6/Lower Caves | Build established: Mutant 1947 | -6/Lower Caves | Discovered new exit (range 9) 1958 | -6/Lower Caves | Identified exit to Lower Caves 1959 | -6/Lower Caves | Entered another Lower Caves area 2188 | -6/Lower Caves | Encountered a Warlord checkpoint 2248 | -6/Lower Caves | Discovered new exit (range 10) 2257 | -6/Lower Caves | Identified exit to Zion 2258 | -6/Lower Caves | Attracted the attention of an 0b10 outpost 2259 | -6/Lower Caves | Entered Zion 2298 | -6/Zion | Acquired unknown access codes intercepted by a Zionite 2338 | -6/Zion | Build established: Scavenger-Skirmisher 2365 | -6/Zion | Learned location of Warlord (-5) 2853 | -6/Zion | Build established: Derelict-Skirmisher 2971 | -6/Zion | Discovered new exit (range 13) 2984 | -6/Zion | Identified exit to Proximity Caves 2985 | -6/Zion | Entered Proximity Caves 3063 | -5/Proximity Caves | Spotted B-75 Beast 3084 | -5/Proximity Caves | Core integrity fell below 50% 3120 | -5/Proximity Caves | Destroyed B-75 Beast 3138 | -5/Proximity Caves | Lost 12 parts (2p3n4u3w) 3356 | -5/Proximity Caves | Build established: Derelict-Mutant 3363 | -5/Proximity Caves | Learned Factory stockpile data 3449 | -5/Proximity Caves | Attracted the attention of an 0b10 outpost 3462 | -5/Proximity Caves | Released all parts (6) 3489 | -5/Proximity Caves | Spotted B-75 Beast 3490 | -5/Proximity Caves | Entered a huge 0b10 base via the front door 3493 | -5/Proximity Caves | Lost 3 parts (2n1w) 3493 | -5/Proximity Caves | Core integrity fell below 20% 3506 | -5/Proximity Caves | Destroyed by B-60 Warrior with Heavy Mace Last Messages --------------- Knocked back. Released IFF Parser. Released Imp. Signal Interpreter. Released Mak. System Shield. Released Sml. Storage Unit. Released Adv. ECM Suite. Released Bore Cannon. Dropped Hvy. Assault Rifle. Slug penetrates Wall. Acquired Exp. Terrain Scan Processor. Penetrated by Slug. Slug penetrates Wall. Y-64 Sentinel: "UNAUTHORIZED DERELICT IN 0B10 PROXIMITY. ENGAGING." C-30 ARC bursts open, deploying its payload. G-67 Veteran unfolds itself. B-60 Warrior unfolds itself. G-50 Soldier unfolds itself. E-15 Imp unfolds itself. Penetrated by Slug. E-15 Imp destroyed. Map ----- +----------------------------------------------------+ | ?????????????????????????????????????????????????? | | ?????????????????????????????????????????????????? | | ?????????????????????????????????????????????????? | | ?????????????????????????????????????????????????? | | ?????????????????????????????????????????????????? | | ?????????????????????????????????????????????????? | | ?????????????????????????????????????????????????? | | ?????????????????????????????????????????????????? | | ?????????????????????????????????????????????????? | | ?????????????????????????????????????????????????? | | ?????????????????????????????????????????????????? | | ?????????????????????????????????????????????????? | | ?????????????????????????????????????????????????? | | ?????????????????????????????????????????????????? | | ?????????????????????????????????????????????????? | | ???????????????# ????????????????????????????????? | | ???????????????# ???????????????????????????????? | | ???????????????# ???????????????????????????????? | | ???????????????# ???????????????????????????????? | | ??????????###### ######?????????????????????????? | | ??????????# #?????????????????????????? | | ?????????# #?????????????????????????? | | #????????# #?????????????????????????? | | #????????# #?????????????????????????? | | ###??##### """" ###++##### #?????????????? | | ??? """" @ #?????????????? | | " ????? """" bb u #?????????????? | | %#????????# """" ####### ##+#?????????????? | | "#####???## ! #????????#????????????????? | | #???# =% #?????????????????????????? | | ##??## #?????????????????????????? | | #???# #?????????????????????????? | | #????###### ## ###?????????????????????????? | | #?????????# ####???????????????????????????? | | ########### #??????????????????????????????? | | #??????????????????????????????? | | #??????????????????????????????? | | ###########+##??????????????????????????????? | | #????????? %??????????????????????????????? | | #????????? %%?????????????????????????????? | | #####????????% %%%????????????????????????????? | | #????????????% %%%#???????????????????????????? | | ##??????????? #???????????????????????????? | | ?????????????## ## #???????????????????????????? | | ??????????????###??###???????????????????????????? | | ?????????????????????????????????????????????????? | | ?????????????????????????????????????????????????? | | ?????????????????????????????????????????????????? | | ?????????????????????????????????????????????????? | | ?????????????????????????????????????????????????? | +----------------------------------------------------+ Best States ------------- Heat Dissipation 51 Energy Generation 18 Energy Capacity 265 Matter Stores 300 Matter Capacity 300 Sight Range 16 Robot Scan Range 15 Terrain Scan Density 10 Phase Shifting 5 Evasion (%) 60 Targeting Accuracy 5 Matter Filtering 30 Offensive Hacking 11 Defensive Hacking 11 Item Schematics ----------------- Imp. Hardlight Generator | -6/Zion | Archive Adv. System Restoration Module | -6/Zion | Archive Imp. System Shield | -6/Zion | Archive Adv. Cooling System | -6/Zion | Archive Adv. Heat Sink | -6/Zion | Archive Imp. Thermal Shield | -6/Zion | Archive Fusion Compressor | -6/Zion | Archive Imp. Remote Force Field | -6/Zion | Archive Phase Gun | -6/Zion | Archive Focal Shield | -6/Zion | Archive Imp. Arc Projector | -6/Zion | Archive Hvy. Shock Bomb Launcher | -6/Zion | Archive Imp. Trap Scanner | -6/Zion | Archive Mass Driver | -6/Zion | Archive Robot Schematics ------------------ G-50 Soldier | -6/Zion | Archive R-06 Scavenger | -6/Zion | Archive W-25 Informer | -6/Zion | Archive Fabricated ------------ Nothing Repaired ---------- Nothing Alien Tech Used ----------------- None Achievements -------------- None Challenges ------------ None Game ------ Seed DecoderZioniteShotgun Manual? 0 Play Time 00:30:19 Cumulative 268.3 hours Start 2025.06.05 @ 20:20:52 End 2025.06.05 @ 21:06:55 Sessions 1 Manual Loads 0 Difficulty Rogue Special Mode None Game No. 509 Rogue 507 Adventurer 2 Explorer 0 Win Type - Total 16 Types 11/0/1/3/1/0/0/0/0/0 Lore% 74 Gallery% 64 Achievement% 58 Wizard Run 0 Options --------- Layout 0 ASCII 0 Keyboard 1 Movement Numpad Keybinds 1 Fullscreen 2 Font 24/Smallcaps Map View 76x50 Zoom Use 0% Tactical HUD 1 Map Filters NONE Filters NONE Steam 1 RUN: 21dc3893-709f-44ec-8c4f-f8aa701368e0